fUST/lending_fUST_20240427
["ID","MTS","AMOUNT","RATE_DAILY","PERIOD"]
[323665826,1714151472619,-500.0,0.00044383,7]
[323665827,1714151472629,-500.0,0.00044383,7]
[323665828,1714151472640,-500.0,0.00044383,7]
[323665829,1714151472650,-502.49797148,0.00044383,7]
[323665830,1714151472660,-500.0,0.00044383,7]
[323665831,1714151472669,-500.0,0.00044383,7]
[323665832,1714151472678,-1037.26,0.00044383,7]
[323665833,1714151472688,-1749.02,0.00044383,7]
[323665834,1714151472697,-1398.14,0.00044383,7]
[323665835,1714151472706,-362.80339937,0.00044383,7]
[323665836,1714151472715,-500.0,0.00044383,7]
[323665837,1714151472724,-500.0,0.00044383,7]
[323665838,1714151472735,-500.0,0.00044383,7]
[323665839,1714151472744,-547.54,0.00044383,7]
[323665840,1714151472754,-2123.78,0.00044383,7]
[323665841,1714151472763,-500.0,0.00044383,7]
[323665842,1714151472772,-500.0,0.00044383,7]
[323665843,1714151472782,-2561.54,0.00044383,7]
[323665844,1714151472791,-500.0,0.00044383,7]
[323665845,1714151472800,-500.0,0.00044383,7]
[323665846,1714151472809,-500.0,0.00044383,7]
[323665847,1714151472818,-1529.74,0.00044383,7]
[323665848,1714151472827,-1087.6,0.00044383,7]
[323665849,1714151472836,-500.0,0.00044383,7]
[323665850,1714151472846,-200.0,0.00044383,30]
[323665851,1714151472856,-1398.22,0.00044383,7]
[323665852,1714151472866,-1748.44,0.00044383,7]
[323665853,1714151472875,-500.0,0.00044383,7]
[323665854,1714151472885,-500.0,0.00044383,7]
[323665855,1714151472894,-500.0,0.00044383,7]
[323665856,1714151472903,-5209.22,0.00044383,7]
[323665857,1714151472912,-500.0,0.00044383,7]
[323665858,1714151472921,-500.0,0.00044383,7]
[323665859,1714151472931,-1379.93,0.00044383,7]
[323665860,1714151472941,-500.0,0.00044383,7]
[323665861,1714151472951,-835.38,0.00044383,7]
[323665862,1714151472962,-500.0,0.00044383,7]
[323665863,1714151472972,-728.58,0.00044383,7]
[323665864,1714151472981,-999.0,0.00044383,16]
[323665865,1714151472991,-704.86,0.00044383,7]
[323665866,1714151473001,-1073.4,0.00044383,7]
[323665867,1714151473010,-500.0,0.00044383,7]
[323665868,1714151473021,-1875.92,0.00044383,7]
[323665869,1714151473031,-502.44399622,0.00044383,7]
[323665870,1714151473042,-747.19,0.00044383,7]
[323665871,1714151473051,-500.0,0.00044383,7]
[323665872,1714151473062,-1963.81,0.00044383,7]
[323665873,1714151473071,-8810.57,0.00044383,7]
[323665874,1714151473080,-1211.86,0.00044383,7]
[323665875,1714151473089,-500.0,0.00044383,7]
[323665876,1714151473100,-500.0,0.00044383,7]
[323665877,1714151473111,-1108.5,0.00044383,7]
[323665878,1714151473121,-500.0,0.00044383,7]
[323665879,1714151473130,-6049.81,0.00044383,7]
[323665880,1714151473142,-500.0,0.00044383,7]
[323665881,1714151473153,-266.79278729,0.00044383,7]
[323665882,1714151473162,-660.06,0.00044383,7]
[323665883,1714151473171,-500.0,0.00044383,7]
[323665884,1714151473181,-4601.83,0.00044383,7]
[323665885,1714151473191,-500.0,0.00044383,7]
[323665886,1714151473201,-500.0,0.00044383,7]
[323665887,1714151473210,-2642.19,0.00044383,7]
[323665888,1714151473220,-1006.47,0.00044383,7]
[323665889,1714151473229,-1236.95,0.00044383,7]
[323665890,1714151473238,-900.0,0.00044383,7]
[323665891,1714151473247,-500.0,0.00044383,7]
[323665892,1714151473257,-500.0,0.00044383,7]
[323665893,1714151473266,-500.0,0.00044383,7]
[323665894,1714151473275,-1037.96,0.00044383,7]
[323665895,1714151473284,-1068.89,0.00044383,7]
[323665896,1714151473294,-538.99,0.00044383,7]
[323665897,1714151473303,-701.69,0.00044383,7]
[323665898,1714151473312,-3882.5,0.00044383,7]
[323665899,1714151473322,-1351.34,0.00044383,7]
[323665900,1714151473330,-500.0,0.00044383,7]
[323665901,1714151473341,-500.0,0.00044383,7]
[323665902,1714151473350,-500.0,0.00044383,7]
[323665903,1714151473359,-1308.8,0.00044383,7]
[323665904,1714151473368,-4129.12,0.00044383,7]
[323665905,1714151473378,-500.0,0.00044383,7]
[323665906,1714151473387,-500.0,0.00044383,7]
[323665907,1714151473396,-1568.78,0.00044383,7]
[323665908,1714151473406,-624.57,0.00044383,7]
[323665909,1714151473415,-9906.46,0.00044383,7]
[323665910,1714151473425,-500.0,0.00044383,7]
[323665911,1714151473434,-707.43,0.00044383,7]
[323665912,1714151473444,-500.0,0.00044383,7]
[323665913,1714151473454,-1463.03,0.00044383,7]
[323665914,1714151473463,-500.0,0.00044383,7]
[323665915,1714151473472,-8370.61,0.00044383,7]
[323665916,1714151473481,-652.39,0.00044383,7]
[323665917,1714151473491,-1240.5,0.00044383,7]
[323665918,1714151473501,-500.0,0.00044383,7]
[323665919,1714151473510,-500.0,0.00044383,7]
[323665920,1714151473521,-612.68,0.00044383,7]
[323665921,1714151473530,-735.34,0.00044383,7]
[323665922,1714151473540,-577.88,0.00044383,7]
[323665923,1714151473549,-12883.84,0.00044383,7]
[323665924,1714151473559,-10267.73,0.00044383,7]
[323665925,1714151473569,-1671.4,0.00044383,7]
[323665926,1714151473578,-500.0,0.00044383,7]
[323665927,1714151473587,-190.61666115,0.00044383,7]
[323665928,1714151473597,-500.0,0.00044383,2]
[323665929,1714151473606,-500.0,0.00044383,7]
[323665930,1714151473615,-502.62635561,0.00044383,7]
[323665931,1714151473626,-227.46499314,0.00044383,7]
[323665932,1714151473635,-1454.51,0.00044383,7]
[323665933,1714151473645,-380.6011908,0.00044657,7]
[323665934,1714151473654,-843.21,0.00044657,7]
[323665935,1714151473664,-500.0,0.00044657,7]
[323665936,1714151473674,-1531.05,0.00044657,120]
[323665937,1714151473683,-1205.42,0.00044657,7]
[323665938,1714151473692,-500.0,0.00044657,7]
[323665939,1714151473701,-500.0,0.00044657,7]
[323665940,1714151473711,-502.89718299,0.00044657,7]
[323665941,1714151473720,-500.0,0.00044657,7]
[323665942,1714151473733,-500.0,0.00044657,7]
[323665943,1714151473743,-502.06519488,0.00044657,7]
[323665944,1714151473753,-500.0,0.00044657,7]
[323665945,1714151473763,-500.0,0.00044657,7]
[323665946,1714151473772,-500.0,0.00044657,7]
[323665947,1714151473782,-1843.11,0.00044657,7]
[323665948,1714151473792,-1315.36,0.00044657,7]
[323665949,1714151473801,-500.0,0.00044657,7]
[323665950,1714151473810,-1968.72,0.00044657,7]
[323665951,1714151473819,-500.0,0.00044657,7]
[323665952,1714151473831,-1326.46,0.00044657,7]
[323665953,1714151473840,-500.0,0.00044657,7]
[323665954,1714151473850,-238.25157819,0.00044657,7]
[323665955,1714151473859,-500.0,0.00044657,7]
[323665956,1714151473868,-500.0,0.00044657,7]
[323665957,1714151473878,-500.0,0.00044657,7]
[323665958,1714151473887,-568.76658803,0.00044657,7]
[323665959,1714151473896,-1037.26,0.00044657,7]
[323665960,1714151473906,-1749.02,0.00044657,7]
[323665961,1714151473915,-1398.14,0.00044657,7]
[323665962,1714151473925,-500.0,0.00044657,7]
[323665963,1714151473934,-500.0,0.00044657,7]
[323665964,1714151473943,-547.54,0.00044657,7]
[323665965,1714151473953,-2123.78,0.00044657,7]
[323665966,1714151473962,-500.0,0.00044657,7]
[323665967,1714151473971,-568.08561647,0.00044657,7]
[323665968,1714151473980,-2561.54,0.00044657,7]
[323665969,1714151473989,-503.40501119,0.00044657,7]
[323665970,1714151473999,-500.0,0.00044657,7]
[323665971,1714151474008,-500.0,0.00044657,7]
[323665972,1714151474021,-1529.74,0.00044657,7]
[323665973,1714151474030,-1087.6,0.00044657,7]
[323665974,1714151474039,-500.0,0.00044657,7]
[323665975,1714151474049,-200.0,0.00044657,30]
[323665976,1714151474059,-1398.22,0.00044657,7]
[323665977,1714151474068,-1748.44,0.00044657,7]
[323665978,1714151474078,-500.0,0.00044657,7]
[323665979,1714151474087,-299.59658196,0.00044657,7]
[323665980,1714151474097,-500.0,0.00044657,7]
[323665981,1714151474106,-5209.22,0.00044657,7]
[323665982,1714151474115,-500.0,0.00044657,7]
[323665983,1714151474124,-500.0,0.00044657,7]
[323665984,1714151474133,-1379.93,0.00044657,7]
[323665985,1714151474142,-500.0,0.00044657,7]
[323665986,1714151474151,-835.38,0.00044657,7]
[323665987,1714151474160,-500.0,0.00044657,7]
[323665988,1714151474169,-728.58,0.00044657,7]
[323665989,1714151474179,-704.86,0.00044657,7]
[323665990,1714151474188,-1073.4,0.00044657,7]
[323665991,1714151474197,-500.0,0.00044657,7]
[323665992,1714151474206,-1875.92,0.00044657,7]
[323665993,1714151474215,-747.19,0.00044657,7]
[323665994,1714151474224,-500.0,0.00044657,7]
[323665995,1714151474233,-1963.81,0.00044657,7]
[323665996,1714151474242,-8810.57,0.00044657,7]
[323665997,1714151474252,-1211.86,0.00044657,7]
[323665998,1714151474262,-500.0,0.00044657,7]
[323665999,1714151474271,-500.0,0.00044657,7]
[323666000,1714151474279,-1108.5,0.00044657,7]
[323666001,1714151474289,-500.0,0.00044657,7]
[323666002,1714151474298,-6049.81,0.00044657,7]
[323666003,1714151474307,-500.0,0.00044657,7]
[323666004,1714151474316,-660.06,0.00044657,7]
[323666005,1714151474325,-500.0,0.00044657,7]
[323666006,1714151474335,-4601.83,0.00044657,7]
[323666007,1714151474344,-500.0,0.00044657,7]
[323666008,1714151474353,-500.0,0.00044657,7]
[323666009,1714151474362,-2642.19,0.00044657,7]
[323666010,1714151474371,-1006.47,0.00044657,7]
[323666011,1714151474380,-1236.95,0.00044657,7]
[323666012,1714151474390,-900.0,0.00044657,7]
[323666013,1714151474400,-500.0,0.00044657,7]
[323666014,1714151474410,-503.37945345,0.00044657,7]
[323666015,1714151474419,-500.0,0.00044657,7]
[323666016,1714151474428,-1037.96,0.00044657,7]
[323666017,1714151474438,-1068.89,0.00044657,7]
[323666018,1714151474448,-538.99,0.00044657,7]
[323666019,1714151474457,-701.69,0.00044657,7]
[323666020,1714151474466,-3882.5,0.00044657,7]
[323666021,1714151474476,-500.0,0.00044657,7]
[323666022,1714151474485,-1351.34,0.00044657,7]
[323666023,1714151474494,-500.0,0.00044657,7]
[323666024,1714151474504,-470.6456488,0.00044657,7]
[323666025,1714151474514,-1308.8,0.00044657,7]
[323666026,1714151474523,-4129.12,0.00044657,7]
[323666027,1714151474533,-500.0,0.00044657,7]
[323666028,1714151474542,-500.0,0.00044657,7]
[323666029,1714151474551,-1568.78,0.00044657,7]
[323666030,1714151474560,-624.57,0.00044657,7]
[323666031,1714151474570,-9906.46,0.00044657,7]
[323666032,1714151474580,-707.43,0.00044657,7]
[323666033,1714151474590,-503.18293295,0.00044657,7]
[323666034,1714151474599,-500.0,0.00044657,7]
[323666035,1714151474608,-1463.03,0.00044657,7]
[323666036,1714151474617,-500.0,0.00044657,7]
[323666037,1714151474627,-8370.61,0.00044657,7]
[323666038,1714151474636,-652.39,0.00044657,7]
[323666039,1714151474646,-1240.5,0.00044657,7]
[323666040,1714151474655,-500.0,0.00044657,7]
[323666041,1714151474664,-500.0,0.00044657,7]
[323666042,1714151474673,-612.68,0.00044657,7]
[323666043,1714151474682,-735.34,0.00044657,7]
[323666044,1714151474692,-577.88,0.00044657,7]
[323666045,1714151474802,-12883.84,0.00044657,7]
[323666046,1714151474814,-10267.73,0.00044657,7]
[323666047,1714151474823,-1671.4,0.00044657,7]
[323666048,1714151474833,-500.0,0.00044657,7]
[323666049,1714151474843,-500.0,0.00044657,2]
[323666050,1714151474853,-500.0,0.00044657,7]
[323666051,1714151474862,-1454.51,0.00044657,7]
[323666052,1714151474872,-843.21,0.00044931,7]
[323666053,1714151474881,-502.0611935,0.00044931,7]
[323666054,1714151474891,-1531.05,0.00044931,120]
[323666055,1714151474900,-1205.42,0.00044931,7]
[323666056,1714151474910,-500.0,0.00044931,7]
[323666057,1714151474919,-500.0,0.00044931,7]
[323666058,1714151474929,-500.0,0.00044931,7]
[323666059,1714151474939,-500.0,0.00044931,7]
[323666060,1714151474948,-500.0,0.00044931,7]
[323666061,1714151474957,-500.0,0.00044931,7]
[323666062,1714151474966,-500.0,0.00044931,7]
[323666063,1714151474977,-1843.11,0.00044931,7]
[323666064,1714151474986,-1315.36,0.00044931,7]
[323666065,1714151474996,-500.0,0.00044931,7]
[323666066,1714151475006,-1968.72,0.00044931,7]
[323666067,1714151475016,-500.0,0.00044931,7]
[323666068,1714151475029,-1326.46,0.00044931,7]
[323666069,1714151475038,-160.0,0.00044931,7]
[323666070,1714151475047,-500.0,0.00044931,7]
[323666071,1714151475057,-500.0,0.00044931,7]
[323666072,1714151475068,-503.8483357,0.00044931,7]
[323666073,1714151475077,-1037.26,0.00044931,7]
[323666074,1714151475087,-1749.02,0.00044931,7]
[323666075,1714151475097,-1398.14,0.00044931,7]
[323666076,1714151475107,-500.0,0.00044931,7]
[323666077,1714151475117,-500.0,0.00044931,7]
[323666078,1714151475127,-547.54,0.00044931,7]
[323666079,1714151475137,-2123.78,0.00044931,7]
[323666080,1714151475147,-500.0,0.00044931,7]
[323666081,1714151475156,-2561.54,0.00044931,7]
[323666082,1714151475167,-500.0,0.00044931,7]
[323666083,1714151475176,-500.0,0.00044931,7]
[323666084,1714151475185,-1529.74,0.00044931,7]
[323666085,1714151475196,-1087.6,0.00044931,7]
[323666086,1714151475205,-500.0,0.00044931,7]
[323666087,1714151475214,-200.0,0.00044931,30]
[323666088,1714151475223,-1398.22,0.00044931,7]
[323666089,1714151475232,-1748.44,0.00044931,7]
[323666090,1714151475241,-500.0,0.00044931,7]
[323666091,1714151475250,-500.0,0.00044931,7]
[323666092,1714151475259,-5209.22,0.00044931,7]
[323666093,1714151475269,-500.0,0.00044931,7]
[323666094,1714151475278,-500.0,0.00044931,7]
[323666095,1714151475287,-1379.93,0.00044931,7]
[323666096,1714151475296,-500.0,0.00044931,7]
[323666097,1714151475305,-835.38,0.00044931,7]
[323666098,1714151475314,-500.0,0.00044931,7]
[323666099,1714151475323,-728.58,0.00044931,7]
[323666100,1714151475332,-704.86,0.00044931,7]
[323666101,1714151475342,-1073.4,0.00044931,7]
[323666102,1714151475351,-500.0,0.00044931,7]
[323666103,1714151475360,-1875.92,0.00044931,7]
[323666104,1714151475369,-747.19,0.00044931,7]
[323666105,1714151475379,-500.0,0.00044931,7]
[323666106,1714151475388,-1963.81,0.00044931,7]
[323666107,1714151475397,-8810.57,0.00044931,7]
[323666108,1714151475406,-1211.86,0.00044931,7]
[323666109,1714151475415,-500.0,0.00044931,7]
[323666110,1714151475424,-500.0,0.00044931,7]
[323666111,1714151475434,-1108.5,0.00044931,7]
[323666112,1714151475443,-500.0,0.00044931,7]
[323666113,1714151475452,-6049.81,0.00044931,7]
[323666114,1714151475462,-500.0,0.00044931,7]
[323666115,1714151475471,-660.06,0.00044931,7]
[323666116,1714151475481,-500.0,0.00044931,7]
[323666117,1714151475491,-4601.83,0.00044931,7]
[323666118,1714151475501,-500.0,0.00044931,7]
[323666119,1714151475510,-2642.19,0.00044931,7]
[323666120,1714151475519,-564.40006087,0.00044931,7]
[323666121,1714151475529,-1006.47,0.00044931,7]
[323666122,1714151475539,-1236.95,0.00044931,7]
[323666123,1714151475549,-900.0,0.00044931,7]
[323666124,1714151475558,-502.61954629,0.00044931,7]
[323666125,1714151475567,-500.0,0.00044931,7]
[323666126,1714151475577,-1037.96,0.00044931,7]
[323666127,1714151475586,-1068.89,0.00044931,7]
[323666128,1714151475596,-538.99,0.00044931,7]
[323666129,1714151475605,-701.69,0.00044931,7]
[323666130,1714151475615,-3882.5,0.00044931,7]
[323666131,1714151475625,-500.0,0.00044931,7]
[323666132,1714151475634,-1351.34,0.00044931,7]
[323666133,1714151475643,-506.0,0.00044931,7]
[323666134,1714151475653,-1308.8,0.00044931,7]
[323666135,1714151475663,-4129.12,0.00044931,7]
[323666136,1714151475673,-500.0,0.00044931,7]
[323666137,1714151475682,-500.0,0.00044931,7]
[323666138,1714151475691,-1568.78,0.00044931,7]
[323666139,1714151475701,-624.57,0.00044931,7]
[323666140,1714151475710,-9906.46,0.00044931,7]
[323666141,1714151475720,-707.43,0.00044931,7]
[323666142,1714151475729,-500.0,0.00044931,7]
[323666143,1714151475739,-1463.03,0.00044931,7]
[323666144,1714151475749,-500.0,0.00044931,7]
[323666145,1714151475758,-8370.61,0.00044931,7]
[323666146,1714151475767,-652.39,0.00044931,7]
[323666147,1714151475776,-1240.5,0.00044931,7]
[323666148,1714151475785,-500.0,0.00044931,7]
[323666149,1714151475795,-500.0,0.00044931,7]
[323666150,1714151475804,-612.68,0.00044931,7]
[323666151,1714151475813,-735.34,0.00044931,7]
[323666152,1714151475822,-577.88,0.00044931,7]
[323666153,1714151475832,-12883.84,0.00044931,7]
[323666154,1714151475842,-10267.73,0.00044931,7]
[323666155,1714151475851,-1671.4,0.00044931,7]
[323666156,1714151475861,-500.0,0.00044931,7]
[323666157,1714151475871,-500.0,0.00044931,2]
[323666158,1714151475880,-500.0,0.00044931,7]
[323666159,1714151475890,-267.67899433,0.00044998,2]
[323666160,1714151475899,-1500.0,0.00045,60]
[323666161,1714151475908,-843.21,0.00045205,7]
[323666162,1714151475917,-1531.05,0.00045205,120]
[323666163,1714151475926,-1205.42,0.00045205,7]
[323666164,1714151475936,-500.0,0.00045205,7]
[323666165,1714151475945,-500.0,0.00045205,7]
[323666166,1714151475955,-224.51784523,0.00045205,7]
[323666167,1714151475964,-500.0,0.00045205,7]
[323666168,1714151475973,-500.0,0.00045205,7]
[323666169,1714151475983,-500.0,0.00045205,7]
[323666170,1714151475992,-500.0,0.00045205,7]
[323666171,1714151476002,-1843.11,0.00045205,7]
[323666172,1714151476011,-1315.36,0.00045205,7]
[323666173,1714151476023,-500.0,0.00045205,7]
[323666174,1714151476032,-1968.72,0.00045205,7]
[323666175,1714151476041,-506.05954055,0.00045205,7]
[323666176,1714151476050,-1326.46,0.00045205,7]
[323666177,1714151476060,-500.0,0.00045205,7]
[323666178,1714151476070,-500.0,0.00045205,7]
[323666179,1714151476080,-1037.26,0.00045205,7]
[323666180,1714151476089,-1749.02,0.00045205,7]
[323666181,1714151476098,-1398.14,0.00045205,7]
[323666182,1714151476108,-500.0,0.00045205,7]
[323666183,1714151476117,-500.0,0.00045205,7]
[323666184,1714151476127,-547.54,0.00045205,7]
[323666185,1714151476136,-2123.78,0.00045205,7]
[323666186,1714151476145,-303.50276093,0.00045205,7]
[323666187,1714151476154,-2561.54,0.00045205,7]
[323666188,1714151476163,-500.0,0.00045205,7]
[323666189,1714151476172,-247.69519254,0.00045205,7]
[323666190,1714151476182,-1529.74,0.00045205,7]
[323666191,1714151476191,-1087.6,0.00045205,7]
[323666192,1714151476201,-448.99917367,0.00045205,7]
[323666193,1714151476210,-200.0,0.00045205,30]
[323666194,1714151476218,-1398.22,0.00045205,7]
[323666195,1714151476228,-1748.44,0.00045205,7]
[323666196,1714151476237,-500.0,0.00045205,7]
[323666197,1714151476248,-500.0,0.00045205,7]
[323666198,1714151476257,-5209.22,0.00045205,7]
[323666199,1714151476267,-500.0,0.00045205,7]
[323666200,1714151476276,-167.9190458,0.00045205,7]
[323666201,1714151476286,-1379.93,0.00045205,7]
[323666202,1714151476296,-500.0,0.00045205,7]
[323666203,1714151476306,-835.38,0.00045205,7]
[323666204,1714151476315,-500.0,0.00045205,7]
[323666205,1714151476324,-728.58,0.00045205,7]
[323666206,1714151476334,-704.86,0.00045205,7]
[323666207,1714151476344,-1073.4,0.00045205,7]
[323666208,1714151476353,-500.0,0.00045205,7]
[323666209,1714151476363,-1875.92,0.00045205,7]
[323666210,1714151476372,-747.19,0.00045205,7]
[323666211,1714151476382,-500.0,0.00045205,7]
[323666212,1714151476392,-1963.81,0.00045205,7]
[323666213,1714151476431,-8810.57,0.00045205,7]
[323666214,1714151476441,-1211.86,0.00045205,7]
[323666215,1714151476450,-500.0,0.00045205,7]
[323666216,1714151476460,-500.0,0.00045205,7]
[323666217,1714151476469,-1108.5,0.00045205,7]
[323666218,1714151476478,-500.0,0.00045205,7]
[323666219,1714151476488,-6049.81,0.00045205,7]
[323666220,1714151476498,-503.33270024,0.00045205,7]
[323666221,1714151476507,-660.06,0.00045205,7]
[323666222,1714151476516,-500.0,0.00045205,7]
[323666223,1714151476525,-4601.83,0.00045205,7]
[323666224,1714151476535,-500.0,0.00045205,7]
[323666225,1714151476545,-2642.19,0.00045205,7]
[323666226,1714151476554,-1006.47,0.00045205,7]
[323666227,1714151476563,-1236.95,0.00045205,7]
[323666228,1714151476572,-900.0,0.00045205,7]
[323666229,1714151476581,-500.0,0.00045205,7]
[323666230,1714151476590,-1037.96,0.00045205,7]
[323666231,1714151476600,-1068.89,0.00045205,7]
[323666232,1714151476610,-538.99,0.00045205,7]
[323666233,1714151476619,-701.69,0.00045205,7]
[323666234,1714151476628,-3882.5,0.00045205,7]
[323666235,1714151476638,-502.91567085,0.00045205,7]
[323666236,1714151476648,-1351.34,0.00045205,7]
[323666237,1714151476657,-1308.8,0.00045205,7]
[323666238,1714151476666,-4129.12,0.00045205,7]
[323666239,1714151476676,-500.0,0.00045205,7]
[323666240,1714151476685,-500.0,0.00045205,7]
[323666241,1714151476694,-1568.78,0.00045205,7]
[323666242,1714151476706,-624.57,0.00045205,7]
[323666243,1714151476715,-9906.46,0.00045205,7]
[323666244,1714151476725,-707.43,0.00045205,7]
[323666245,1714151476735,-500.0,0.00045205,7]
[323666246,1714151476745,-1463.03,0.00045205,7]
[323666247,1714151476754,-500.0,0.00045205,7]
[323666248,1714151476764,-8370.61,0.00045205,7]
[323666249,1714151476774,-652.39,0.00045205,7]
[323666250,1714151476783,-1240.5,0.00045205,7]
[323666251,1714151476792,-500.0,0.00045205,7]
[323666252,1714151476801,-500.0,0.00045205,7]
[323666253,1714151476811,-612.68,0.00045205,7]
[323666254,1714151476821,-735.34,0.00045205,7]
[323666255,1714151476831,-577.88,0.00045205,7]
[323666256,1714151476842,-10267.73,0.00045205,7]
[323666257,1714151476852,-12883.84,0.00045205,7]
[323666258,1714151476861,-1671.4,0.00045205,7]
[323666259,1714151476871,-500.0,0.00045205,7]
[323666260,1714151476881,-500.0,0.00045205,2]
[323666261,1714151476890,-500.0,0.00045205,7]
[323666262,1714151476899,-843.21,0.00045479,7]
[323666263,1714151476908,-1531.05,0.00045479,120]
[323666264,1714151476917,-1205.42,0.00045479,7]
[323666265,1714151476928,-500.0,0.00045479,7]
[323666266,1714151476937,-500.0,0.00045479,7]
[323666267,1714151476947,-500.0,0.00045479,7]
[323666268,1714151476956,-500.0,0.00045479,7]
[323666269,1714151476965,-203.62354786,0.00045479,7]
[323666270,1714151477058,-151.0,0.00045479,7]
[323666271,1714151477076,-500.0,0.00045479,7]
[323666272,1714151477085,-1843.11,0.00045479,7]
[323666273,1714151477095,-1315.36,0.00045479,7]
[323666274,1714151477104,-500.0,0.00045479,7]
[323666275,1714151477115,-1968.72,0.00045479,7]
[323666276,1714151477124,-1326.46,0.00045479,7]
[323666277,1714151477133,-500.0,0.00045479,7]
[323666278,1714151477143,-500.0,0.00045479,7]
[323666279,1714151477152,-1037.26,0.00045479,7]
[323666280,1714151477161,-1749.02,0.00045479,7]
[323666281,1714151477171,-1398.14,0.00045479,7]
[323666282,1714151477180,-500.0,0.00045479,7]
[323666283,1714151477190,-500.0,0.00045479,7]
[323666284,1714151477199,-547.54,0.00045479,7]
[323666285,1714151477209,-2123.78,0.00045479,7]
[323666286,1714151477219,-2561.54,0.00045479,7]
[323666287,1714151477229,-500.0,0.00045479,7]
[323666288,1714151477238,-1529.74,0.00045479,7]
[323666289,1714151477248,-1087.6,0.00045479,7]
[323666290,1714151477258,-200.0,0.00045479,30]
[323666291,1714151477268,-1398.22,0.00045479,7]
[323666292,1714151477277,-1748.44,0.00045479,7]
[323666293,1714151477286,-502.5463289,0.00045479,7]
[323666294,1714151477296,-500.0,0.00045479,7]
[323666295,1714151477306,-5209.22,0.00045479,7]
[323666296,1714151477315,-571.9248306,0.00045479,7]
[323666297,1714151477324,-1379.93,0.00045479,7]
[323666298,1714151477334,-500.0,0.00045479,7]
[323666299,1714151477343,-835.38,0.00045479,7]
[323666300,1714151477352,-399.02579866,0.00045479,7]
[323666301,1714151477361,-728.58,0.00045479,7]
[323666302,1714151477370,-999.0,0.00045479,18]
[323666303,1714151477379,-704.86,0.00045479,7]
[323666304,1714151477388,-1073.4,0.00045479,7]
[323666305,1714151477398,-500.0,0.00045479,7]
[323666306,1714151477407,-1875.92,0.00045479,7]
[323666307,1714151477416,-747.19,0.00045479,7]
[323666308,1714151477427,-500.0,0.00045479,7]
[323666309,1714151477436,-1963.81,0.00045479,7]
[323666310,1714151477445,-8810.57,0.00045479,7]
[323666311,1714151477454,-1211.86,0.00045479,7]
[323666312,1714151477463,-355.60570995,0.00045479,7]
[323666313,1714151477472,-500.0,0.00045479,7]
[323666314,1714151477481,-1108.5,0.00045479,7]
[323666315,1714151477490,-311.2794562,0.00045479,7]
[323666316,1714151477501,-6049.81,0.00045479,7]
[323666317,1714151477510,-660.06,0.00045479,7]
[323666318,1714151477520,-500.0,0.00045479,7]
[323666319,1714151477529,-4601.83,0.00045479,7]
[323666320,1714151477538,-500.0,0.00045479,7]
[323666321,1714151477547,-2642.19,0.00045479,7]
[323666322,1714151477556,-1006.47,0.00045479,7]
[323666323,1714151477565,-1236.95,0.00045479,7]
[323666324,1714151477575,-900.0,0.00045479,7]
[323666325,1714151477584,-500.0,0.00045479,7]